[Event "DFMMLV 2019"]
[Site "Braunfels"]
[Date "2019.06.23"]
[Round "5.42"]
[White "Krausse, Vanessa"]
[Black "Todorova, Kalina"]
[Result "0-1"]
[ECO "B43"]
[WhiteElo "1645"]
[BlackElo "1796"]
[Annotator "NA"]
[PlyCount "76"]
[EventDate "2019.06.20"]
[EventType "team-tourn"]
[EventCountry "GER"]
[SourceTitle "playchess.com"]
[Source "ChessBase"]
[SourceQuality "1"]
[WhiteTeam "Hessen 2"]
[BlackTeam "Bayern 2"]
[TimeControl "40/5400+30:1800+30"]

1. e4 {[%emt 0:00:00]} c5 {[%emt 0:00:00]} 2. Nf3 {[%emt 0:00:00]} e6 {[%emt 0:00:00]} 3. d4 {[%emt 0:00:00]} cxd4 {[%emt 0:00:00]} 4. Nxd4 {[%emt 0:00:26]} a6 {[%emt 0:00:00]} 5. Nc3 {[%emt 0:00:15]} Qc7 {[%emt 0:01:16]} 6. Be3 {[%emt 0:03:13]} Nf6 {[%emt 0:01:14]} 7. f3 {[%emt 0:00:40]} Bc5 {[%emt 0:05:36]} 8. Qd2 {[%emt 0:00:42]} b5 {[%emt 0:00:31]} 9. Be2 {[%emt 0:01:59]} Bb7 {[%emt 0:02:58]} 10. Ndxb5 {[%emt 0:08:27]} axb5 {[%emt 0:04:09]} 11. Nxb5 {[%emt 0:00:17]} Qb6 {[%emt 0:00:36]} 12. Bxc5 {[%emt 0:01:33]} Qxc5 {[%emt 0:00:03]} 13. Nd6+ {[%emt 0:00:49]} Ke7 {[%emt 0:00:44]} 14. Nxb7 {[%emt 0:02:34]} Qb6 15. e5 {[%emt 0:01:25]} Ne8 {[%emt 0:09:14]} 16. Nd6 {[%emt 0:13:17]} Qxb2 {[%emt 0:02:45]} 17. O-O {[%emt 0:00:30]} Qxe5 18. Ne4 {[%emt 0:02:29]} Nc6 {[%emt 0:09:44]} 19. Rfd1 {[%emt 0:10:10]} d5 20. Nc3 Nc7 {[%emt 0:22:08]} 21. Nb5 {[%emt 0:05:05]} Rhb8 {[%emt 0:05:25]} 22. Nxc7 {[%emt 0:01:07]} Qxc7 {[%emt 0:00:06]} 23. c4 {[%emt 0:01:59]} dxc4 {[%emt 0:06:23]} 24. Bxc4 {[%emt 0:00:29]} Qb6+ {[%emt 0:02:08]} 25. Kh1 {[%emt 0:00:52]} Rd8 {[%emt 0:01:17]} 26. Qg5+ {[%emt 0:01:00]} Kf8 {[%emt 0:00:11]} 27. Rxd8+ {[%emt 0:00:11]} Rxd8 {[%emt 0:00:26]} 28. Qb5 {[%emt 0:02:12]} Qd4 {[%emt 0:05:28]} 29. Rg1 {[%emt 0:02:21]} Ne5 {[%emt 0:01:22]} 30. Be2 {[%emt 0:02:06]} g6 {[%emt 0:05:21]} 31. a4 {[%emt 0:01:14]} Qe3 {[%emt 0:03:10]} 32. a5 {[%emt 0:02:21]} Rd2 {[%emt 0:01:40]} 33. Qb4+ {[%emt 0:01:26]} Kg7 {[%emt 0:00:18]} 34. Bb5 {[%emt 0:01:00]} Nxf3 {[%emt 0:01:32]} 35. Rf1 {[%emt 0:05:40]} Ng5 {[%emt 0:07:01]} 36. Qf4 {[%emt 0:07:28]} Qxf4 {[%emt 0:00:23]} 37. Rxf4 {[%emt 0:00:07]} Rd5 {[%emt 0:00:09]} 38. Be8 {[%emt 0:02:19]} Rd1+ {[%emt 0:00:08]} 0-1

[Event "DFMMLV 2019"]
[Site "Braunfels"]
[Date "2019.06.23"]
[Round "5.43"]
[White "Alsheimer, Lea"]
[Black "Buchholz, Maja"]
[Result "1-0"]
[ECO "B08"]
[WhiteElo "1707"]
[BlackElo "1657"]
[Annotator "NA"]
[PlyCount "37"]
[EventDate "2019.06.20"]
[EventType "team-tourn"]
[EventCountry "GER"]
[SourceTitle "playchess.com"]
[Source "ChessBase"]
[SourceQuality "1"]
[WhiteTeam "Bayern 2"]
[BlackTeam "Hessen 2"]
[TimeControl "40/5400+30:1800+30"]

1. d4 {[%emt 0:00:00]} Nf6 {[%emt 0:00:00]} 2. Nf3 {[%emt 0:00:00]} g6 {[%emt 0:00:00]} 3. Nc3 {[%emt 0:00:10]} Bg7 {[%emt 0:00:03]} 4. e4 {[%emt 0:00:11]} d6 {[%emt 0:00:11]} 5. Bf4 {[%emt 0:00:27]} O-O {[%emt 0:01:05]} 6. Qd2 {[%emt 0:01:32]} Re8 {[%emt 0:03:37]} 7. O-O-O {[%emt 0:00:25]} c6 {[%emt 0:05:57]} 8. Bh6 {[%emt 0:00:36]} Bh8 {[%emt 0:00:53]} 9. h4 {[%emt 0:00:18]} b5 {[%emt 0:00:19]} 10. Bd3 {[%emt 0:01:08]} b4 {[%emt 0:00:31]} 11. Ne2 {[%emt 0:01:10]} a5 {[%emt 0:10:17]} 12. h5 {[%emt 0:02:35]} Ba6 {[%emt 0:02:33]} 13. hxg6 {[%emt 0:00:21]} fxg6 {[%emt 0:00:13]} 14. e5 {[%emt 0:01:08]} Bxd3 {[%emt 0:08:12]} 15. exf6 {[%emt 0:02:45]} Bxe2 {[%emt 0:03:01]} 16. f7+ {[%emt 0:01:29]} Kxf7 {[%emt 0:00:23]} 17. Qxe2 {[%emt 0:00:18]} Nd7 {[%emt 0:03:19]} 18. Ng5+ {[%emt 0:00:15]} Kg8 {[%emt 0:00:31]} 19. Qe6# 1-0

[Event "DFMMLV 2019"]
[Site "Braunfels"]
[Date "2019.06.23"]
[Round "5.44"]
[White "Goetz, Fenja"]
[Black "Pavlov, Liliane"]
[Result "0-1"]
[ECO "B91"]
[WhiteElo "1528"]
[BlackElo "1619"]
[Annotator "NA"]
[PlyCount "68"]
[EventDate "2019.06.20"]
[EventType "team-tourn"]
[EventCountry "GER"]
[SourceTitle "playchess.com"]
[Source "ChessBase"]
[SourceQuality "1"]
[WhiteTeam "Hessen 2"]
[BlackTeam "Bayern 2"]
[TimeControl "40/5400+30:1800+30"]

1. e4 {[%emt 0:00:00]} c5 {[%emt 0:00:00]} 2. Nf3 {[%emt 0:00:00]} d6 {[%emt 0:00:00]} 3. d4 {[%emt 0:00:00]} cxd4 {[%emt 0:00:00]} 4. Nxd4 {[%emt 0:00:00]} Nf6 {[%emt 0:00:00]} 5. Nc3 {[%emt 0:00:00]} a6 {[%emt 0:00:00]} 6. g3 {[%emt 0:02:06]} e5 {[%emt 0:01:05]} 7. Nf3 {[%emt 0:01:06]} Be7 {[%emt 0:01:01]} 8. Bg2 {[%emt 0:00:11]} O-O {[%emt 0:01:26]} 9. O-O {[%emt 0:00:12]} h6 {[%emt 0:02:38]} 10. Qd3 {[%emt 0:04:51]} Be6 {[%emt 0:01:02]} 11. Rd1 {[%emt 0:01:35]} Nbd7 {[%emt 0:01:17]} 12. Nh4 {[%emt 0:03:41]} Nc5 {[%emt 0:01:04]} 13. Qe2 {[%emt 0:01:27]} Rc8 {[%emt 0:02:45]} 14. Nf5 {[%emt 0:02:11]} b5 {[%emt 0:03:24]} 15. Nxe7+ {[%emt 0:01:40]} Qxe7 {[%emt 0:00:15]} 16. a3 {[%emt 0:00:14]} Rfd8 {[%emt 0:01:19]} 17. Be3 {[%emt 0:06:22]} Bc4 {[%emt 0:02:21]} 18. Qe1 {[%emt 0:04:54]} Ng4 {[%emt 0:05:11]} 19. Bc1 {[%emt 0:01:34]} Qa7 {[%emt 0:05:34]} 20. Nd5 {[%emt 0:06:46]} Ne6 {[%emt 0:05:24]} 21. h3 {[%emt 0:03:02]} Bxd5 {[%emt 0:06:02]} 22. exd5 {[%emt 0:00:01]} Nd4 {[%emt 0:00:12]} 23. hxg4 Nxc2 {[%emt 0:00:25]} 24. Qe2 {[%emt 0:13:41]} Nxa1 {[%emt 0:00:45]} 25. Be3 {[%emt 0:00:01]} Rc2 {[%emt 0:01:13]} 26. Bxa7 {[%emt 0:03:54]} Rxe2 {[%emt 0:00:13]} 27. Rxa1 {[%emt 0:00:37]} Rxb2 {[%emt 0:00:36]} 28. Rc1 {[%emt 0:01:18]} Rb3 {[%emt 0:00:21]} 29. Ra1 {[%emt 0:08:34]} Rc8 {[%emt 0:01:24]} 30. Kf1 {[%emt 0:05:17]} Kf8 {[%emt 0:00:14]} 31. Ke1 {[%emt 0:01:13]} Rcc3 {[%emt 0:00:28]} 32. a4 {[%emt 0:00:09]} b4 {[%emt 0:01:13]} 33. Bf1 {[%emt 0:00:32]} Ra3 {[%emt 0:00:28]} 34. Rxa3 {[%emt 0:01:46]} bxa3 {[%emt 0:00:08]} 0-1

[Event "DFMMLV 2019"]
[Site "Braunfels"]
[Date "2019.06.23"]
[Round "5.44"]
[White "Schwegler, Jelena"]
[Black "Pavlov, Liliane"]
[Result "*"]
[ECO "B90"]
[WhiteElo "1511"]
[BlackElo "1619"]
[Annotator "NA"]
[PlyCount "41"]
[EventDate "2019.06.20"]
[EventType "team-tourn"]
[EventCountry "GER"]
[SourceTitle "playchess.com"]
[Source "ChessBase"]
[SourceQuality "1"]
[WhiteTeam "Hessen 2"]
[BlackTeam "Bayern 2"]
[TimeControl "40/5400+30:1800+30"]

1. e4 {[%emt 0:00:00]} c5 {[%emt 0:00:00]} 2. Nf3 {[%emt 0:00:00]} d6 {[%emt 0:00:00]} 3. d4 {[%emt 0:00:00]} cxd4 {[%emt 0:00:00]} 4. Nxd4 {[%emt 0:00:00]} Nf6 {[%emt 0:00:00]} 5. Nc3 {[%emt 0:00:00]} a6 {[%emt 0:00:00]} 6. g3 {[%emt 0:02:06]} e5 {[%emt 0:01:05]} 7. Nf3 {[%emt 0:01:06]} Be7 {[%emt 0:01:01]} 8. Bg2 {[%emt 0:00:11]} O-O {[%emt 0:01:26]} 9. O-O {[%emt 0:00:12]} h6 {[%emt 0:02:38]} 10. Qd3 {[%emt 0:04:51]} Be6 {[%emt 0:01:02]} 11. Rd1 {[%emt 0:01:35]} Nbd7 {[%emt 0:01:17]} 12. Nh4 {[%emt 0:03:41]} Nc5 {[%emt 0:01:04]} 13. Qe2 {[%emt 0:01:27]} Rc8 {[%emt 0:02:45]} 14. Nf5 {[%emt 0:02:11]} b5 {[%emt 0:03:24]} 15. Nxe7+ {[%emt 0:01:40]} Qxe7 {[%emt 0:00:15]} 16. a3 {[%emt 0:00:14]} Rfd8 {[%emt 0:01:19]} 17. Be3 {[%emt 0:06:22]} Bc4 {[%emt 0:02:21]} 18. Qe1 {[%emt 0:04:54]} Ng4 {[%emt 0:05:11]} 19. Bc1 {[%emt 0:01:34]} Qa7 {[%emt 0:05:34]} 20. Nd5 {[%emt 0:06:46]} Ne6 {[%emt 0:05:24]} 21. h3 {[%emt 0:03:02]} *

[Event "DFMMLV 2019"]
[Site "Braunfels"]
[Date "2019.06.23"]
[Round "5.45"]
[White "Schaefer, Ann-Kathrin"]
[Black "Goetz, Fenja"]
[Result "*"]
[ECO "D02"]
[WhiteElo "1714"]
[BlackElo "1528"]
[Annotator "NA"]
[PlyCount "38"]
[EventDate "2019.06.20"]
[EventType "team-tourn"]
[EventCountry "GER"]
[SourceTitle "playchess.com"]
[Source "ChessBase"]
[SourceQuality "1"]
[WhiteTeam "Bayern 2"]
[BlackTeam "Hessen 2"]
[TimeControl "40/5400+30:1800+30"]

1. d4 {[%emt 0:00:00]} d5 {[%emt 0:00:00]} 2. Nf3 {[%emt 0:00:00]} Bf5 {[%emt 0:00:00]} 3. e3 {[%emt 0:00:00]} Nf6 {[%emt 0:00:00]} 4. c4 {[%emt 0:00:00]} e6 {[%emt 0:00:05]} 5. Qb3 {[%emt 0:01:53]} Qc8 {[%emt 0:01:14]} 6. Nc3 {[%emt 0:01:35]} c6 {[%emt 0:00:32]} 7. Bd2 {[%emt 0:03:42]} Nbd7 {[%emt 0:00:29]} 8. cxd5 {[%emt 0:01:59]} exd5 {[%emt 0:01:25]} 9. Rc1 {[%emt 0:02:35]} Be7 {[%emt 0:01:32]} 10. Be2 {[%emt 0:02:28]} O-O {[%emt 0:00:19]} 11. O-O {[%emt 0:01:16]} a6 {[%emt 0:02:39]} 12. Na4 {[%emt 0:08:39]} c5 {[%emt 0:02:33]} 13. dxc5 {[%emt 0:02:34]} Nxc5 {[%emt 0:01:19]} 14. Nxc5 {[%emt 0:00:53]} Bxc5 {[%emt 0:00:11]} 15. Bb4 {[%emt 0:03:19]} b6 {[%emt 0:01:23]} 16. Nd4 {[%emt 0:08:45]} Be4 {[%emt 0:03:06]} 17. Rc3 {[%emt 0:03:05]} Rb8 {[%emt 0:04:03]} 18. Rfc1 {[%emt 0:07:43]} Qd7 {[%emt 0:01:56]} 19. Bxa6 {[%emt 0:01:17]} Qd6 {[%emt 0:06:38]} *

[Event "DFMMLV 2019"]
[Site "Braunfels"]
[Date "2019.06.23"]
[Round "5.45"]
[White "Schaefer, Ann-Kathrin"]
[Black "von Beckh, Frieda"]
[Result "0-1"]
[ECO "D02"]
[WhiteElo "1714"]
[BlackElo "1465"]
[Annotator "NA"]
[PlyCount "76"]
[EventDate "2019.06.20"]
[EventType "team-tourn"]
[EventCountry "GER"]
[SourceTitle "playchess.com"]
[Source "ChessBase"]
[SourceQuality "1"]
[WhiteTeam "Bayern 2"]
[BlackTeam "Hessen 2"]
[TimeControl "40/5400+30:1800+30"]

1. d4 {[%emt 0:00:00]} d5 {[%emt 0:00:00]} 2. Nf3 {[%emt 0:00:00]} Bf5 {[%emt 0:00:00]} 3. e3 {[%emt 0:00:00]} Nf6 {[%emt 0:00:00]} 4. c4 {[%emt 0:00:00]} e6 {[%emt 0:00:05]} 5. Qb3 {[%emt 0:01:53]} Qc8 {[%emt 0:01:14]} 6. Nc3 {[%emt 0:01:35]} c6 {[%emt 0:00:32]} 7. Bd2 {[%emt 0:03:42]} Nbd7 {[%emt 0:00:29]} 8. cxd5 {[%emt 0:01:59]} exd5 {[%emt 0:01:25]} 9. Rc1 {[%emt 0:02:35]} Be7 {[%emt 0:01:32]} 10. Be2 {[%emt 0:02:28]} O-O {[%emt 0:00:19]} 11. O-O {[%emt 0:01:16]} a6 {[%emt 0:02:39]} 12. Na4 {[%emt 0:08:39]} c5 {[%emt 0:02:33]} 13. dxc5 {[%emt 0:02:34]} Nxc5 {[%emt 0:01:19]} 14. Nxc5 {[%emt 0:00:53]} Bxc5 {[%emt 0:00:11]} 15. Bb4 {[%emt 0:03:19]} b6 {[%emt 0:01:23]} 16. Nd4 {[%emt 0:08:45]} Be4 {[%emt 0:03:06]} 17. Rc3 {[%emt 0:03:05]} Rb8 {[%emt 0:04:03]} 18. Rfc1 {[%emt 0:07:43]} Qd7 {[%emt 0:01:56]} 19. Bxa6 {[%emt 0:01:17]} Qd6 {[%emt 0:06:38]} 20. Nb5 {[%emt 0:04:39]} Qe6 {[%emt 0:02:06]} 21. f3 {[%emt 0:02:41]} Bf5 {[%emt 0:02:25]} 22. Bxc5 {[%emt 0:01:07]} bxc5 {[%emt 0:00:21]} 23. Qa3 {[%emt 0:07:58]} Nd7 {[%emt 0:05:27]} 24. Rd1 {[%emt 0:10:12]} Ne5 {[%emt 0:06:40]} 25. Nc7 {[%emt 0:02:48]} Qg6 {[%emt 0:01:00]} 26. Be2 {[%emt 0:01:42]} Bh3 {[%emt 0:03:20]} 27. g3 {[%emt 0:00:12]} Qf5 {[%emt 0:08:00]} 28. Kf2 {[%emt 0:05:27]} Nxf3 {[%emt 0:06:00]} 29. Rxd5 {[%emt 0:01:30]} Ne5+ {[%emt 0:01:51]} 30. Ke1 {[%emt 0:01:34]} Qb1+ {[%emt 0:01:18]} 31. Rd1 {[%emt 0:03:53]} Qe4 {[%emt 0:04:34]} 32. Kd2 {[%emt 0:04:03]} Rfd8+ {[%emt 0:04:19]} 33. Kc1 {[%emt 0:00:13]} Bf5 {[%emt 0:01:29]} 34. Rd5 {[%emt 0:05:15]} Qb1+ {[%emt 0:01:41]} 35. Kd2 {[%emt 0:00:06]} Rxb2+ {[%emt 0:00:20]} 36. Qxb2 {[%emt 0:01:08]} Qxb2+ {[%emt 0:00:21]} 37. Rc2 {[%emt 0:00:05]} Qxc2+ {[%emt 0:00:11]} 38. Ke1 {[%emt 0:00:12]} Rxd5 {[%emt 0:00:34]} 0-1

[Event "DFMMLV 2019"]
[Site "Braunfels"]
[Date "2019.06.23"]
[Round "5.46"]
[White "von Beckh, Frieda"]
[Black "Albayrak, Nese Pinar"]
[Result "*"]
[ECO "D02"]
[WhiteElo "1465"]
[BlackElo "1530"]
[Annotator "NA"]
[PlyCount "27"]
[EventDate "2019.06.20"]
[EventType "team-tourn"]
[EventCountry "GER"]
[SourceTitle "playchess.com"]
[Source "ChessBase"]
[SourceQuality "1"]
[WhiteTeam "Hessen 2"]
[BlackTeam "Bayern 2"]
[TimeControl "40/5400+30:1800+30"]

1. d4 {[%emt 0:00:00]} d5 {[%emt 0:00:00]} 2. Bf4 {[%emt 0:00:00]} c6 {[%emt 0:00:00]} 3. e3 {[%emt 0:00:00]} Bf5 {[%emt 0:00:02]} 4. c4 {[%emt 0:00:14]} Nf6 {[%emt 0:00:34]} 5. Nc3 {[%emt 0:00:45]} e6 {[%emt 0:01:06]} 6. Nf3 {[%emt 0:02:02]} Nbd7 {[%emt 0:02:32]} 7. Be2 {[%emt 0:01:32]} Be7 {[%emt 0:03:31]} 8. O-O {[%emt 0:04:29]} O-O {[%emt 0:00:24]} 9. h3 {[%emt 0:05:29]} Re8 {[%emt 0:05:28]} 10. Rc1 {[%emt 0:14:48]} Nf8 {[%emt 0:06:15]} 11. cxd5 {[%emt 0:01:15]} exd5 {[%emt 0:01:31]} 12. Qb3 {[%emt 0:08:47]} Qb6 {[%emt 0:04:57]} 13. Qxb6 {[%emt 0:07:25]} axb6 {[%emt 0:00:10]} 14. a4 {[%emt 0:08:58]} *

[Event "DFMMLV 2019"]
[Site "Braunfels"]
[Date "2019.06.23"]
[Round "5.46"]
[White "Biesdorf, Ina"]
[Black "Albayrak, Nese Pinar"]
[Result "0-1"]
[ECO "D00"]
[WhiteElo "1405"]
[BlackElo "1530"]
[Annotator "NA"]
[PlyCount "150"]
[EventDate "2019.06.20"]
[EventType "team-tourn"]
[EventCountry "GER"]
[SourceTitle "playchess.com"]
[Source "ChessBase"]
[SourceQuality "1"]
[WhiteTeam "Hessen 2"]
[BlackTeam "Bayern 2"]
[TimeControl "40/5400+30:1800+30"]

1. d4 {[%emt 0:00:00]} d5 {[%emt 0:00:00]} 2. Bf4 {[%emt 0:00:00]} c6 {[%emt 0:00:00]} 3. e3 {[%emt 0:00:00]} Bf5 {[%emt 0:00:02]} 4. c4 {[%emt 0:00:14]} Nf6 {[%emt 0:00:34]} 5. Nc3 {[%emt 0:00:45]} e6 {[%emt 0:01:06]} 6. Nf3 {[%emt 0:02:02]} Nbd7 {[%emt 0:02:32]} 7. Be2 {[%emt 0:01:32]} Be7 {[%emt 0:03:31]} 8. O-O {[%emt 0:04:29]} O-O {[%emt 0:00:24]} 9. h3 {[%emt 0:05:29]} Re8 {[%emt 0:05:28]} 10. Rc1 {[%emt 0:14:48]} Nf8 {[%emt 0:06:15]} 11. cxd5 {[%emt 0:01:15]} exd5 {[%emt 0:01:31]} 12. Qb3 {[%emt 0:08:47]} Qb6 {[%emt 0:04:57]} 13. Qxb6 {[%emt 0:07:25]} axb6 {[%emt 0:00:10]} 14. a4 {[%emt 0:08:58]} Ne6 {[%emt 0:05:54]} 15. Bh2 {[%emt 0:05:09]} Ne4 {[%emt 0:11:22]} 16. b3 {[%emt 0:07:31]} Ba3 {[%emt 0:03:31]} 17. Rc2 {[%emt 0:03:33]} Ng3 {[%emt 0:07:28]} 18. Ra2 {[%emt 0:01:59]} Nxf1 {[%emt 0:02:21]} 19. Rxa3 {[%emt 0:01:11]} Nxh2 {[%emt 0:00:09]} 20. Nxh2 {[%emt 0:00:18]} b5 {[%emt 0:01:12]} 21. Ra2 {[%emt 0:01:53]} b4 {[%emt 0:04:27]} 22. Nd1 {[%emt 0:00:32]} b6 {[%emt 0:03:17]} 23. h4 {[%emt 0:00:56]} Nc7 {[%emt 0:07:31]} 24. g4 {[%emt 0:01:38]} Be6 {[%emt 0:00:19]} 25. Rc2 {[%emt 0:00:38]} Bd7 {[%emt 0:02:47]} 26. Nb2 {[%emt 0:02:10]} f6 {[%emt 0:07:57]} 27. Nd3 {[%emt 0:00:29]} Na6 {[%emt 0:00:21]} 28. Ne1 {[%emt 0:01:01]} Rec8 {[%emt 0:06:10]} 29. Bf3 {[%emt 0:00:25]} Be6 {[%emt 0:04:22]} 30. Bg2 {[%emt 0:00:32]} Ra7 {[%emt 0:02:13]} 31. f4 {[%emt 0:00:41]} c5 {[%emt 0:02:33]} 32. f5 {[%emt 0:00:38]} Bf7 {[%emt 0:00:04]} 33. Bf1 {[%emt 0:01:03]} Nb8 {[%emt 0:02:50]} 34. Nd3 {[%emt 0:00:25]} Rac7 {[%emt 0:00:24]} 35. Nf3 {[%emt 0:01:09]} Na6 {[%emt 0:01:37]} 36. Nde1 {[%emt 0:00:47]} c4 {[%emt 0:00:23]} 37. Rb2 {[%emt 0:01:04]} Nb8 {[%emt 0:01:11]} 38. bxc4 {[%emt 0:00:13]} dxc4 {[%emt 0:00:05]} 39. Rxb4 {[%emt 0:00:10]} c3 {[%emt 0:01:26]} 40. Rb1 {[%emt 0:00:07]} c2 {[%emt 0:00:17]} 41. Rc1 {[%emt 0:30:11]} Be8 {[%emt 0:00:49]} 42. Nd3 {[%emt 0:00:00]} Rc3 {[%emt 0:11:48]} 43. Nd2 {[%emt 0:00:00]} Bxa4 {[%emt 0:02:10]} 44. e4 {[%emt 0:00:00]} Bb5 {[%emt 0:01:40]} 45. Nb4 {[%emt 0:00:00]} Bxf1 {[%emt 0:03:45]} 46. Kxf1 {[%emt 0:00:00]} Rh3 {[%emt 0:01:09]} 47. Rxc2 {[%emt 0:00:00]} Rxc2 {[%emt 0:00:18]} 48. Nxc2 {[%emt 0:00:00]} Rh2 {[%emt 0:00:21]} 49. Ke1 {[%emt 0:00:00]} Rxh4 {[%emt 0:00:33]} 50. Ne3 {[%emt 0:00:00]} Rh1+ {[%emt 0:00:32]} 51. Ke2 {[%emt 0:00:00]} Ra1 {[%emt 0:00:07]} 52. Kd3 {[%emt 0:00:00]} b5 {[%emt 0:00:20]} 53. d5 {[%emt 0:00:00]} Ra4 {[%emt 0:00:47]} 54. Nc2 {[%emt 0:00:00]} Nd7 {[%emt 0:01:38]} 55. Kc3 {[%emt 0:00:00]} Nc5 {[%emt 0:02:04]} 56. Nb4 {[%emt 0:00:00]} Na6 {[%emt 0:01:47]} 57. Nxa6 {[%emt 0:00:00]} Rxa6 {[%emt 0:00:01]} 58. Kb4 {[%emt 0:00:00]} Ra2 {[%emt 0:01:40]} 59. Nb3 {[%emt 0:00:00]} Rg2 {[%emt 0:01:43]} 60. d6 {[%emt 0:00:00]} Kf8 {[%emt 0:00:25]} 61. Kxb5 {[%emt 0:00:00]} Rxg4 {[%emt 0:01:32]} 62. Nc5 {[%emt 0:00:00]} Rg1 {[%emt 0:01:08]} 63. Kc6 {[%emt 0:00:00]} Rc1 {[%emt 0:00:26]} 64. Kd5 {[%emt 0:00:00]} Rxc5+ {[%emt 0:01:34]} 65. Kxc5 {[%emt 0:00:00]} Ke8 {[%emt 0:00:03]} 66. Kd5 {[%emt 0:00:00]} Kd7 {[%emt 0:00:25]} 67. e5 {[%emt 0:00:00]} fxe5 {[%emt 0:00:06]} 68. Kxe5 {[%emt 0:00:00]} h5 {[%emt 0:00:18]} 69. Kf4 {[%emt 0:00:00]} Kxd6 {[%emt 0:00:22]} 70. Kg5 {[%emt 0:00:00]} Ke5 {[%emt 0:00:54]} 71. f6 {[%emt 0:00:00]} gxf6+ {[%emt 0:00:06]} 72. Kxh5 {[%emt 0:00:00]} Kf4 {[%emt 0:02:41]} 73. Kh4 {[%emt 0:00:00]} Kf3 {[%emt 0:02:11]} 74. Kh3 {[%emt 0:00:00]} f5 {[%emt 0:00:11]} 75. Kh2 {[%emt 0:00:00]} f4 {[%emt 0:00:51]} 0-1

[Event "DFMMLV 2019"]
[Site "Braunfels"]
[Date "2019.06.23"]
[Round "5.47"]
[White "Weber, Leonora"]
[Black "Biesdorf, Ina"]
[Result "*"]
[WhiteElo "1712"]
[BlackElo "1405"]
[Annotator "NA"]
[PlyCount "29"]
[EventDate "2019.06.20"]
[EventType "team-tourn"]
[EventCountry "GER"]
[SourceTitle "playchess.com"]
[Source "ChessBase"]
[SourceQuality "1"]
[WhiteTeam "Bayern 2"]
[BlackTeam "Hessen 2"]
[TimeControl "40/5400+30:1800+30"]

1. e4 {[%emt 0:00:00]} e5 {[%emt 0:00:00]} 2. Nf3 {[%emt 0:00:00]} Nc6 {[%emt 0:00:00]} 3. Bc4 {[%emt 0:00:00]} Bc5 {[%emt 0:00:10]} 4. c3 {[%emt 0:00:00]} Nf6 {[%emt 0:00:22]} 5. d4 {[%emt 0:00:00]} exd4 {[%emt 0:00:35]} 6. cxd4 {[%emt 0:00:00]} Bb4+ {[%emt 0:00:54]} 7. Bd2 {[%emt 0:00:00]} Bxd2+ {[%emt 0:04:52]} 8. Nbxd2 {[%emt 0:00:02]} d5 {[%emt 0:01:21]} 9. exd5 {[%emt 0:00:11]} Nxd5 {[%emt 0:00:18]} 10. Qb3 {[%emt 0:01:54]} Nce7 {[%emt 0:08:29]} 11. O-O {[%emt 0:01:13]} O-O {[%emt 0:01:20]} 12. Ne4 {[%emt 0:01:02]} b6 {[%emt 0:07:15]} 13. Rac1 {[%emt 0:10:26]} Bb7 {[%emt 0:01:48]} 14. Nc3 {[%emt 0:15:44]} Nf4 {[%emt 0:05:03]} 15. d5 {[%emt 0:10:21]} *

[Event "DFMMLV 2019"]
[Site "Braunfels"]
[Date "2019.06.23"]
[Round "5.47"]
[White "Weber, Leonora"]
[Black "Dixon Quiroz, Laura Michaela"]
[Result "0-1"]
[ECO "C54"]
[WhiteElo "1712"]
[BlackElo "1258"]
[Annotator "NA"]
[PlyCount "54"]
[EventDate "2019.06.20"]
[EventType "team-tourn"]
[EventCountry "GER"]
[SourceTitle "playchess.com"]
[Source "ChessBase"]
[SourceQuality "1"]
[WhiteTeam "Bayern 2"]
[BlackTeam "Hessen 2"]
[TimeControl "40/5400+30:1800+30"]

1. e4 {[%emt 0:00:00]} e5 {[%emt 0:00:00]} 2. Nf3 {[%emt 0:00:00]} Nc6 {[%emt 0:00:00]} 3. Bc4 {[%emt 0:00:00]} Bc5 {[%emt 0:00:10]} 4. c3 {[%emt 0:00:00]} Nf6 {[%emt 0:00:22]} 5. d4 {[%emt 0:00:00]} exd4 {[%emt 0:00:35]} 6. cxd4 {[%emt 0:00:00]} Bb4+ {[%emt 0:00:54]} 7. Bd2 {[%emt 0:00:00]} Bxd2+ {[%emt 0:04:52]} 8. Nbxd2 {[%emt 0:00:02]} d5 {[%emt 0:01:21]} 9. exd5 {[%emt 0:00:11]} Nxd5 {[%emt 0:00:18]} 10. Qb3 {[%emt 0:01:54]} Nce7 {[%emt 0:08:29]} 11. O-O {[%emt 0:01:13]} O-O {[%emt 0:01:20]} 12. Ne4 {[%emt 0:01:02]} b6 {[%emt 0:07:15]} 13. Rac1 {[%emt 0:10:26]} Bb7 {[%emt 0:01:48]} 14. Nc3 {[%emt 0:15:44]} Nf4 {[%emt 0:05:03]} 15. d5 {[%emt 0:10:21]} Nfxd5 {[%emt 0:13:45]} 16. Rcd1 {[%emt 0:12:25]} c6 {[%emt 0:02:03]} 17. Ne5 {[%emt 0:00:44]} Qd6 {[%emt 0:08:10]} 18. Nxc6 {[%emt 0:01:19]} Bxc6 {[%emt 0:01:04]} 19. Nxd5 {[%emt 0:00:20]} Nxd5 {[%emt 0:01:30]} 20. Bxd5 {[%emt 0:00:22]} Bxd5 {[%emt 0:03:38]} 21. Rxd5 {[%emt 0:01:05]} Qe6 {[%emt 0:03:43]} 22. Rfd1 {[%emt 0:01:27]} Rfe8 {[%emt 0:01:47]} 23. h3 {[%emt 0:07:43]} h6 {[%emt 0:02:18]} 24. Qa3 {[%emt 0:12:07]} Re7 {[%emt 0:05:31]} 25. Rd8+ {[%emt 0:04:30]} Rxd8 {[%emt 0:00:44]} 26. Rxd8+ {[%emt 0:00:02]} Kh7 {[%emt 0:00:27]} 27. Qd3+ {[%emt 0:00:38]} Qg6 {[%emt 0:02:40]} 0-1